Cogmind - Beta 9.1 @@@ ROGUE MODE // 2019.10.30 @ 23:25:32 Player: MrPainting Result: Destroyed self with Grenade Launcher Performance ------------- Evolutions (0) 0 Regions Visited (2) 400 Robots Destroyed (18) 90 Value Destroyed (288) 288 Prototype IDs (1) 20 Alien Tech Used (0) 0 Bonus (0) 0 TOTAL SCORE: 798 Bonus ------- None Cogmind --------- Core Integrity 0/250 Matter 185/300 Energy 90/100 System Corruption 0% Temperature Cool (0) Location -10/Mines Parts ------- Power (1) Propulsion (2) Utility (2) Large Storage Unit Weapon Shielding Weapon (2) Grenade Launcher Mining Claw Inventory (10) Improved Heat Sink Visual Processing Unit Improved EM Shotgun Improved EM Shotgun Improved EM Shotgun Heavy Assault Rifle Heavy Assault Rifle Datajack Mining Claw Mining Claw Peak State ------------ Power Ion Engine Propulsion Aluminum Leg Aluminum Leg Utility Large Storage Unit Weapon Shielding Weapon Improved EM Shotgun Mining Claw Inventory Improved Heat Sink Grenade Launcher Datajack Mining Claw [Rating: 9] Favorites ----------- Power Ion Engine Engine Ion Engine Propulsion Aluminum Leg Treads Light Treads Leg Aluminum Leg Hover Unit Hover Unit Utility Large Storage Unit Device ECM Suite Storage Large Storage Unit Processor Signal Interpreter Protection Weapon Shielding Weapon Mining Claw Energy Gun Improved EM Shotgun Ballistic Gun Light Assault Rifle Launcher Grenade Launcher Slashing Weapon Mining Claw Build | -11 -10 -10 ------- Run | Scr Mat Min Slots Evolved . | . . . Power . | . . . Propulsion . | . . . Utility . | . . . Weapon . | . . . Parts Attached 26 | 6 19 1 Power 3 | 1 2 . Engine 3 | 1 2 . Core . | . . . Reactor . | . . . Propulsion 6 | 2 4 . Treads 2 | 2 . . Leg 2 | . 2 . Wheel . | . . . Hover 2 | . 2 . Flight . | . . . Utility 7 | 1 6 . Device 1 | . 1 . Storage 3 | 1 2 . Processor 1 | . 1 . Hackware . | . . . Protection 2 | . 2 . Artifact . | . . . Weapon 10 | 2 7 1 Energy Gun 1 | . 1 . Energy Cannon . | . . . Ballistic Gun 2 | 2 . . Ballistic Cannon . | . . . Launcher 3 | . 2 1 Special Weapon . | . . . Impact Weapon . | . . . Slashing Weapon 4 | . 4 . Piercing Weapon . | . . . Special Melee Weapon . | . . . Unidentified Prototypes 1 | . 1 . Parts Lost 5 | . 2 3 Power 1 | . . 1 Propulsion 4 | . 2 2 Utility . | . . . Weapon . | . . . Highest Loss Streak 2 | . 2 2 Average Slot Usage (%) 87 | . 94 72 Engine 13 | . 14 13 Treads 7 | . 10 . Leg 9 | . 12 2 Hover 1 | . 2 . Device 4 | . 7 . Storage 10 | . 8 14 Processor 3 | . 5 . Protection 7 | . 4 14 Ballistic Gun 1 | . 2 . Launcher 2 | . 2 . Slashing Weapon 24 | . 22 27 Naked Turns . | . . . Heaviest Build 26 | 11 26 26 Greatest Support 40 | 40 40 20 Greatest Overweight (x) 8 | 2 2 8 Average Overweight (x) 1 | . . 7 Largest Inventory Capacity 10 | 6 10 10 Average Capacity 7 | 5 7 10 Most Carried 10 | 4 10 10 Average Carried 6 | 1 5 10 Final Capacity 10 | 6 10 10 Final Carried 10 | 2 10 10 Class Distribution -------------------- 82% | Mutant 17% | Scavenger-Mutant Dominant Class ---------------- Mutant | -10/Materials Mutant | -10/Mines Resources | -11 -10 -10 ----------- Run | Scr Mat Min Matter Collected 423 | 238 170 15 Remotely . | . . . Salvage Created 274 | . 224 50 Parts 38 | . 29 9 Haulers Intercepted . | . . . Recyclers Shooed 1 | . 1 . Parts Field Recycled . | . . . Retrieved Matter . | . . . Parts Self-Destructed . | . . . Prevented . | . . . Kills | -11 -10 -10 ------- Run | Scr Mat Min Combat Hostiles Destroyed 12 | . 7 5 Melee 7 | . 4 3 AOE 5 | . 3 2 Classes Destroyed 5 | . 5 . Worker 1 | . 1 . Builder 2 | . 2 . Watcher 3 | . 3 . Swarmer 8 | . 3 5 Grunt 4 | . 4 . Best Kill Streak 5 | . 5 3 Combat Bots Only 3 | . 3 3 Max Kills in Single Turn 2 | . 2 1 Gunslinging . | . . . Exploded 1 | . 1 1 Melee 1 | . 1 1 Uniques/NPCs Destroyed . | . . . Combat | -11 -10 -10 -------- Run | Scr Mat Min Damage Taken 694 | . 265 429 Core 251 | . 85 166 Absorbed by Shields . | . . . Core Remaining (%) 100 | 100 . . Volleys Fired 10 | . 8 2 Largest 2 | . 2 1 Hottest 50 | . 50 30 Shots Fired 13 | . 11 2 Gun 3 | . 3 . Cannon . | . . . Launcher 10 | . 8 2 Special . | . . . Kinetic 3 | . 3 . Thermal . | . . . Explosive 10 | . 8 2 Electromagnetic . | . . . Robot Hit Streak 6 | . 6 1 Robot Miss Streak 1 | . 1 1 Penetration Max . | . . . Secondary Targets . | . . . Shots Hit Robots 30 | . 21 9 Core Hits 21 | . 15 6 Critical Hits . | . . . Critical Kills . | . . . Critical Parts Destroyed . | . . . Melee Attacks 33 | . 20 13 Impact . | . . . Slashing 33 | . 20 13 Piercing . | . . . Sneak Attacks 4 | . 3 1 Combat Hostiles . | . . . Follow-up Attacks 4 | . 2 2 Damage Inflicted 1271 | . 910 361 Guns 21 | . 21 . Cannons . | . . . Explosions 597 | . 471 126 Melee 653 | . 418 235 Ramming . | . . . Kinetic 21 | . 21 . Thermal . | . . . Explosive 597 | . 471 126 Electromagnetic . | . . . Impact . | . . . Slashing 653 | . 418 235 Piercing . | . . . Highest Corruption . | . . . Average Corruption . | . . . Corruption Purged . | . . . Overload Shots . | . . . Overflow Damage 91 | . 39 52 Projectiles . | . . . Explosions 13 | . 13 . Melee 78 | . 26 52 Knockbacks . | . . . Impact . | . . . Kinetic . | . . . Secondary . | . . . Self-Inflicted Damage 168 | . 107 61 Shots 6 | . 4 2 Rammed . | . . . Targets Rammed . | . . . Kicked . | . . . Crushed . | . . . Highest Temperature 10 | . 10 . Average Temperature 7 | . 7 . Received Heat Transfer 78 | . 78 . Siege Activations . | . . . Robots Corrupted . | . . . Combat Hostiles . | . . . Parts Fried . | . . . Impact Corruptions . | . . . Robots Melted . | . . . Combat Hostiles . | . . . Parts Melted . | . . . Heat Transferred . | . . . Parts Sabotaged . | . . . Parts Stolen . | . . . Parts Stripped . | . . . Power Chain Reactions . | . . . Missiles Intercepted . | . . . Alert | -11 -10 -10 ------- Run | Scr Mat Min Peak Influence 153 | . 153 87 Average Influence 46 | . 40 72 Maximum Alert Level . | . . . Low Security (%) 100 | . . . Level 1 . | . . . Level 2 . | . . . Level 3 . | . . . Level 4 . | . . . Level 5 . | . . . High Security . | . . . Max Security . | . . . Squads Dispatched . | . . . Investigation . | . . . Extermination . | . . . Reinforcement . | . . . Assault . | . . . Garrison . | . . . Intercept . | . . . Construction Impeded . | . . . Haulers Reinforced . | . . . Stealth | -11 -10 -10 --------- Run | Scr Mat Min Distress Signals 1 | . 1 . Communications Jammed . | . . . Distress Signals . | . . . Times Spotted 22 | . 17 5 Peak Tracking Total 4 | . 4 3 Tactical Retreats 3 | . 3 . Traps | -11 -10 -10 ------- Run | Scr Mat Min Traps Triggered . | . . . Indirectly . | . . . Trap Hack Attempts . | . . . Triggered . | . . . Disarmed . | . . . Reprogrammed . | . . . Reused . | . . . Traps Extracted . | . . . Installed . | . . . Triggered . | . . . Machines | -11 -10 -10 ---------- Run | Scr Mat Min Machines Disabled . | . . . Max in Single Turn . | . . . Machines Sabotaged . | . . . Garrisons Compromised . | . . . Overloaded Fab Kills . | . . . Fab Network Shutdowns . | . . . Hacking | -11 -10 -10 --------- Run | Scr Mat Min Machines Accessed 2 | . 2 . Terminals 2 | . 2 . Fabricators . | . . . Repair Stations . | . . . Recycling Units . | . . . Scanalyzers . | . . . Garrison Access . | . . . Total Hacks 8 | . 8 . Successful 6 | . 6 . Failed 2 | . 2 . Catastrophic . | . . . Database Lockouts . | . . . Manual 6 | . 6 . Terminals 8 | . 8 . Fabricators . | . . . Repair Stations . | . . . Recycling Units . | . . . Scanalyzers . | . . . Garrison Access . | . . . Terminal Hacks 2 | . 2 . Alert Level 1 | . 1 . Locate Traps 1 | . 1 . Fabricator Hacks . | . . . Repair Station Hacks . | . . . Recycling Unit Hacks . | . . . Scanalyzer . | . . . Garrison Access Hacks . | . . . Unauthorized Hacks 10 | . 10 . Terminals 4 | . 4 . Track 2 | . 2 . Botnet 2 | . 2 . Fabricators . | . . . Repair Stations . | . . . Recycling Units . | . . . Scanalyzers . | . . . Garrison Access . | . . . Data Cores Recovered . | . . . Used . | . . . Hacking Detections 2 | . 2 . Full Trace Events . | . . . Feedback Events . | . . . Feedback Blocked . | . . . Robot Schematics Acquired . | . . . Robots Built . | . . . Matter . | . . . Time . | . . . Total Robot Build Rating . | . . . Part Schematics Acquired . | . . . Parts Built . | . . . Matter . | . . . Time . | . . . Total Part Build Rating . | . . . Parts Repaired . | . . . Time . | . . . Parts Recycled . | . . . Recycled Matter . | . . . Retrieved Matter . | . . . Retrieved Components . | . . . Parts Scanalyzed . | . . . Part Schematics Acquired . | . . . Parts Damaged . | . . . Bothacking | -11 -10 -10 ------------ Run | Scr Mat Min Used RIF Installer . | . . . Robots Hacked . | . . . Non-combat . | . . . Combat . | . . . Robot Hacks Applied . | . . . Relay Couplers Released . | . . . Robots Rewired . | . . . Allies Hacked . | . . . Hacks Repelled . | . . . Allies | -11 -10 -10 -------- Run | Scr Mat Min Total Allies . | . . . Largest Group . | . . . Highest-Rated Group . | . . . Highest-Rated Ally . | . . . Total Orders . | . . . Ally Attacks . | . . . Total Damage . | . . . Kills . | . . . Allies Corrupted . | . . . Allies Melted . | . . . Intel | -11 -10 -10 ------- Run | Scr Mat Min Robot Analysis Total . | . . . Derelict Logs Recovered 1 | . . 1 Drone Launches . | . . . Drone Recoveries . | . . . Exploration | -11 -10 -10 ------------- Run | Scr Mat Min Turns Passed 1062 | 84 667 311 Spaces Moved 487 | 53 370 64 Core 107 | 18 30 59 Treads 149 | 35 114 . Legs 152 | . 147 5 Wheels . | . . . Hover 79 | . 79 . Flight . | . . . Fastest Speed 50 | 50 56 150 Average Speed 167 | 136 127 426 Slowest Speed 450 | 160 160 450 Overloaded Moves . | . . . Propulsion Burnouts . | . . . Robots Hopped . | . . . Cave-ins Triggered . | . . . Exploration Rate (%) 25 | 5 48 22 Regions Visited 2 Branch Regions 1 Pre-discovered Areas . | . . . Known Exits Taken . | . . . Unknown Exits Taken 2 | 1 1 . Scrap Searched . | . . . Spaces Dug . | . . . Terrain Destroyed 68 | . 60 8 Melee . | . . . Projectile . | . . . AOE 68 | . 60 8 Actions | -11 -10 -10 --------- Run | Scr Mat Min Total 668 | 64 526 78 Wait 61 | . 61 . Move 485 | 52 369 64 Hop . | . . . Pick Up 33 | 6 27 . Fast Attach 7 | 2 5 . Attach 10 | 4 6 . Detach 3 | . 3 . Swap 9 | . 8 1 Drop 22 | . 22 . Fire 10 | . 8 2 Melee 28 | . 17 11 Ram . | . . . Kick . | . . . Crush . | . . . Escape Stasis . | . . . Rewire . | . . . Trap . | . . . Miscellaneous . | . . . Route ------- -11/Scrapyard -10/Materials (discovered 2 exits: *Mat / [*Min]) -10/Mines (discovered 1 exit: Exi) History --------- Turn | Location | Event 2 | -11/Scrapyard | Discovered new exit (range 16) 85 | -11/Scrapyard | Entered Materials 317 | -10/Materials | Build established: Mutant 471 | -10/Materials | Discovered new exit (range 13) 511 | -10/Materials | Identified exit to Materials 735 | -10/Materials | Discovered new exit (range 10) 752 | -10/Materials | Entered Mines 765 | -10/Mines | Core integrity fell below 50% 820 | -10/Mines | Identified exit to Exiles 1062 | -10/Mines | Core integrity fell below 20% 1063 | -10/Mines | Destroyed self with Grenade Launcher Last Messages --------------- LOCATION=UNKNOWN GOAL=ESCAPE Something is scanning the area. 00764_ S-10 Pest destroyed. 00770_ Aluminum Leg destroyed. 00772_ Destroyed Flight Unit. 00772_ Mining Claw follow-up attack on S-10 Pest. 00772_ S-10 Pest destroyed. 00780_ Aluminum Leg destroyed. 00782_ Destroyed Flight Unit. 00782_ Mining Claw follow-up attack on S-10 Pest. 00790_ S-10 Pest destroyed. 00793_ Acquired 15 matter. 00820_ Acquired derelict log, extracted data. 00822_ R-06 Scavenger collects Lgt. Ion Engine. 00827_ R-06 Scavenger collects Flight Unit. 00847_ Sneak attack on R-06 Scavenger. 00847_ Destroyed Tractor Beam. 01054_ Ion Engine destroyed. 01061_ S-10 Pest destroyed. Map ----- +----------------------------------------------------+ | | | | | | | | | | | | | | | | | | | | | | | | | | | | | ?????????????????????????????????????????????????? | | ????????????????##???????????????????????????????? | | ???????????????## ??????????????????????????????? | | ??????????????## ???????????????????????????### | | ??????????????# ?###??????????????????????# | | ??????????????# ## ????????????########### | | ??????????????# ????????????# | | ??????????????# ????#####???# ######### | | ???????????????# ##### ##??# #???????# | | ????????????????# # #??# ######### | | ????????????????# #??# ## | | ???????????????# @ #??# ## " | | ??????????????# * ## #??# ## ##### " | | ??????????? ##### ##?# ## #???# " | | ??????????? ????## ### ## #???# | | ??????????? k??????## #???# " | | ???????????? ????????# #???# " | | ????????????### ?????????# ########???# " | | ??????????????## ?????????# ##??????????# | | ??????????????# ??????????# ##???????????# " | | ????????????? ?????????? #????????????? " | | ??????????????# #????????? ##????????????? " | | ??????????????# ???????? ### #?????????????? ? | | ???????????????????????? ???# ??????????????#? | | ????????????????????????????? ???????????????? | | ???????????????????????????? ???????????????? | | ???????????????????????????#######???????????????? | | ?????????????????????????????????????????????????? | | ?????????????????????????????????????????????????? | | ?????????????????????????????????????????????????? | | ?????????????????????????????????????????????????? | | ?????????????????????????????????????????????????? | | ?????????????????????????????????????????????????? | | ?????????????????????????????????????????????????? | | ?????????????????????????????????????????????????? | | ?????????????????????????????????????????????????? | +----------------------------------------------------+ Best States ------------- Heat Dissipation 25 Energy Generation 10 Energy Capacity 250 Matter Stores 278 Matter Capacity 300 Sight Range 16 Terrain Scan Density 10 ECM Strength 1 Core Shielding 20 Weapon Shielding 33 Evasion (%) 53 Recoil Reduction 2 Item Schematics ----------------- None Robot Schematics ------------------ None Fabricated ------------ Nothing Alien Tech Used ----------------- None Achievements -------------- None Challenges ------------ None Game ------ Seed SubatomicSpikedDesublimator Manual? 0 Play Time 00:11:33 Cumulative 71.0 hours Start 2019.10.30 @ 23:15:06 End 2019.10.30 @ 23:25:32 Sessions 1 Manual Loads 0 Difficulty Rogue Special Mode None Game No. 114 Rogue 114 Adventurer 0 Explorer 0 Win Type - Total 0 Types 0/0/0/0/0/0/0 Lore% 27 Gallery% 41 Achievement% 29 Wizard Run 0 Options --------- ASCII 0 Keyboard 0 Movement Mouse Keybinds 0 Fullscreen 1 Font 18/SmallcapsGlow Map View 76x50 Tactical HUD 1 Map Filters NONE Filters NONE Steam 1 RUN: b93ef822-71cd-490c-ba2a-81261d4de1ce